bitfinex-derivatives/quotes_SOLF0:USTF0_20240927
["timestamp","ask_amount","ask_price","bid_price","bid_amount"]
[1727446033761,78.50549847,158.02,157.89,43.52]
[1727446034155,78.50549847,158.02,157.9,3.1656]
[1727446034355,3.1645,157.97,157.9,3.1656]
[1727446034549,78.50549847,158.02,157.9,3.1656]
[1727446034755,3.1657,157.91,157.86,43.52]
[1727446034956,97.56549847,158.02,157.83,47.3855]
[1727446034957,3.17916637,157.92,157.83,47.3855]
[1727446035156,43.52,157.93,157.83,3.8655]
[1727446035360,3.1662,157.88,157.83,3.8655]
[1727446035769,1.8894,157.92,157.83,47.3855]
[1727446036361,43.52,157.9,157.78,43.52]
[1727446036555,43.52,157.88,157.76,1.8196]
[1727446037165,43.52,157.88,157.76,4.988]
[1727446037364,43.52,157.88,157.76,1.8196]
[1727446037861,43.52,157.86,157.76,1.8196]
[1727446038065,43.52,157.86,157.73,47.4542]
[1727446038366,43.52,157.86,157.73,50.6233]
[1727446038367,3.1679,157.8,157.73,50.6233]
[1727446038569,43.52,157.83,157.73,1.9907]
[1727446039155,1.9264,157.84,157.73,1.9907]
[1727446039458,1.9264,157.84,157.73,45.5107]
[1727446040173,136.84763734,157.8,157.66,43.52]
[1727446040458,75.28,157.79,157.66,43.52]
[1727446040662,3.1687,157.76,157.66,43.52]
[1727446040864,75.28,157.79,157.66,43.52]
[1727446041059,75.28,157.79,157.69,43.52]
[1727446041455,118.8,157.83,157.71,43.52]
[1727446041655,118.8,157.83,157.73,43.52]
[1727446041656,75.28,157.83,157.73,43.52]
[1727446041860,75.28,157.83,157.74,5.6986]
[1727446042257,75.28,157.83,157.76,3.1684]
[1727446042459,75.28,157.83,157.76,43.52]
[1727446042857,75.28,157.83,157.76,46.6885]
[1727446043263,3.19839302,157.87,157.76,43.52]
[1727446043463,75.28,157.89,157.78,43.52]
[1727446044070,3.1666,157.86,157.78,46.688]
[1727446044471,3.1663,157.88,157.8,3.1677]
[1727446044671,75.28,157.89,157.78,43.52]
[1727446044863,75.28,157.89,157.81,43.52]
[1727446045069,75.28,157.89,157.82,3.1673]
[1727446046168,75.28,157.89,157.81,43.52]
[1727446047162,75.28,157.89,157.82,1.8886]
[1727446047576,75.28,157.89,157.83,5.0409]
[1727446048075,3.16118362,157.91,157.83,5.0409]
[1727446048272,1.2248,157.95,157.83,5.0409]
[1727446048475,43.52,157.94,157.83,5.0409]
[1727446049275,43.52,157.94,157.83,1.874]
[1727446049872,3.1658,157.9,157.83,1.874]
[1727446050378,3.11265067,157.91,157.83,1.874]
[1727446050677,3.1658,157.9,157.83,1.874]
[1727446051680,3.166,157.89,157.83,1.874]
[1727446051872,3.17392235,157.91,157.82,1.8886]
[1727446052179,43.52,157.94,157.83,3.167]
[1727446052379,3.1656,157.91,157.83,43.52]
[1727446052575,6.33983917,157.91,157.83,45.7105]
[1727446052877,1.2248,157.95,157.83,45.7105]
[1727446053069,3.1558635,157.91,157.83,45.7105]
[1727446053468,3.1558635,157.91,157.83,2.1905]
[1727446053670,3.1667,157.86,157.79,46.6879]
[1727446053872,3.1558635,157.91,157.79,43.52]
[1727446054179,43.52,157.92,157.81,43.52]
[1727446054380,3.12892977,157.92,157.81,26.75]
[1727446054682,26.75,157.93,157.81,26.75]
[1727446055079,1.2248,157.95,157.83,26.75]
[1727446055669,1.2248,157.95,157.81,26.75]
[1727446056070,1.2248,157.95,157.82,2.2017]
[1727446056274,1.2248,157.95,157.84,3.1669]
[1727446056977,3.1657,157.91,157.84,3.1669]
[1727446057180,6.39264986,157.91,157.84,3.1669]
[1727446057481,3.1657,157.91,157.84,3.1669]
[1727446057971,6.34797633,157.91,157.84,3.1669]
[1727446058475,1.2248,157.95,157.82,2.2017]
[1727446058476,26.75,157.93,157.82,2.2017]
[1727446058781,26.75,157.93,157.82,5.3689]
[1727446059374,26.75,157.93,157.82,2.2017]
[1727446059579,26.75,157.91,157.82,2.2017]
[1727446059773,26.75,157.91,157.79,26.75]
[1727446059774,29.93449416,157.91,157.79,26.75]
[1727446060173,3.18449416,157.91,157.81,26.75]
[1727446060483,3.166,157.89,157.81,26.75]
[1727446060676,6.35576567,157.89,157.83,3.167]
[1727446060878,26.75,157.94,157.81,26.75]
[1727446060879,3.1658,157.9,157.81,26.75]
[1727446061179,26.75,157.94,157.81,26.75]
[1727446061375,26.75,157.91,157.79,26.75]
[1727446061579,29.89699042,157.91,157.79,26.75]
[1727446062084,3.1667,157.86,157.79,26.75]
[1727446063082,3.1667,157.86,157.81,3.1675]
[1727446063278,3.1668,157.85,157.79,26.75]
[1727446063677,3.1668,157.85,157.8,3.1676]
[1727446064383,3.1668,157.85,157.81,3.1675]
[1727446064574,3.1671,157.84,157.79,26.75]
[1727446064775,3.1671,157.84,157.79,29.9177]
[1727446065376,3.1672,157.83,157.79,29.9178]
[1727446065575,26.75,157.86,157.77,4.3681]
[1727446065783,26.75,157.84,157.73,2.3987]
[1727446066579,4.8904,157.85,157.75,26.75]
[1727446066783,22.20699042,157.91,157.78,26.75]
[1727446066784,26.75,157.89,157.78,26.75]
[1727446067090,26.75,157.89,157.76,26.75]
[1727446067384,26.75,157.86,157.73,29.1487]
[1727446067584,3.1676,157.81,157.76,3.1685]
[1727446067887,3.12481089,157.81,157.73,29.1487]
[1727446068085,3.1686,157.76,157.73,2.3987]
[1727446068280,29.89826996,157.81,157.69,4.7237]
[1727446068779,3.1685,157.77,157.71,3.1694]
[1727446069085,29.89826996,157.81,157.69,4.7237]
[1727446069286,3.1686,157.76,157.71,3.1695]
[1727446069487,29.89826996,157.81,157.69,4.7237]
[1727446069786,3.1685,157.77,157.69,4.7237]
[1727446069979,29.89826996,157.81,157.69,4.7237]
[1727446070382,29.89826996,157.81,157.71,3.1695]
[1727446070985,3.1685,157.77,157.72,3.1693]
[1727446071181,3.1685,157.77,157.69,4.7237]
[1727446071580,3.1681,157.78,157.7,26.75]
[1727446071780,29.89826996,157.81,157.7,26.75]
[1727446072181,29.89826996,157.81,157.72,3.1692]
[1727446073076,29.89826996,157.81,157.7,26.75]
[1727446074286,3.1681,157.79,157.73,3.1691]
[1727446074983,3.1681,157.79,157.72,3.1693]
[1727446075386,3.1681,157.79,157.7,26.75]
[1727446075683,3.1678,157.8,157.7,26.75]
[1727446076089,3.14826996,157.81,157.72,26.75]
[1727446076283,3.1676,157.81,157.75,3.1686]
[1727446076479,3.23997399,157.8,157.75,3.1686]
[1727446076678,3.1676,157.81,157.72,26.75]
[1727446076883,75.3,157.83,157.72,26.75]
[1727446077087,78.4030201,157.83,157.72,26.75]
[1727446077488,3.1676,157.81,157.75,3.1687]
[1727446077890,3.1676,157.81,157.72,26.75]
[1727446078086,3.1674,157.82,157.72,26.75]
[1727446078691,3.1674,157.82,157.77,3.1682]
[1727446078883,168.59686694,157.87,157.75,26.75]
[1727446079084,168.59686694,157.87,157.72,26.75]
[1727446079085,168.59686694,157.87,157.77,26.75]
[1727446079291,168.59686694,157.87,157.8,3.1677]
[1727446079780,168.59686694,157.87,157.79,26.75]
[1727446079983,3.1665,157.86,157.79,26.75]
[1727446080179,102.07,157.87,157.78,2.4038]
[1727446080783,3.167,157.84,157.79,3.1679]
[1727446081088,3.24476266,157.83,157.79,3.1679]
[1727446082081,3.24476266,157.83,157.78,2.4038]
[1727446082286,75.32,157.87,157.78,29.1538]
[1727446082784,78.4865,157.87,157.82,3.1672]
[1727446082989,75.32,157.87,157.82,3.1672]
[1727446083385,78.4864,157.87,157.82,3.1672]
[1727446084087,78.4864,157.87,157.81,26.75]
[1727446084088,75.32,157.87,157.81,26.75]
[1727446084293,3.14699042,157.91,157.81,26.75]
[1727446084495,103.2755,157.95,157.85,3.1667]
[1727446085205,3.1656,157.91,157.85,3.1667]
[1727446085495,6.28213654,157.91,157.85,3.1667]
[1727446085685,3.11653654,157.91,157.86,3.1665]
[1727446085891,76.5255,157.95,157.83,26.75]
[1727446086094,3.15931564,157.91,157.84,2.3258]
[1727446086293,3.15931564,157.91,157.86,26.75]
[1727446086696,3.15931564,157.91,157.89,26.75]
[1727446086894,3.15931564,157.91,157.9,3.1657]
[1727446087090,4.37272148,158.0,157.89,26.75]
[1727446087692,4.37272148,158.0,157.91,3.1654]
[1727446088399,3.1645,157.97,157.91,3.1654]
[1727446088694,4.37272148,158.0,157.86,26.75]
[1727446088695,26.75,157.98,157.86,26.75]
[1727446089101,26.75,157.98,157.87,2.3995]
[1727446089500,26.75,157.96,157.88,3.1661]
[1727446090198,3.1651,157.94,157.88,3.1661]
[1727446090903,3.1651,157.93,157.88,3.1661]
[1727446091109,26.75,157.96,157.84,31.2441]
[1727446091291,3.1656,157.91,157.84,4.4941]
[1727446091496,6.34041795,157.91,157.84,4.4941]
[1727446091695,6.34041795,157.91,157.86,3.1665]
[1727446091903,3.17481795,157.91,157.84,4.4941]
[1727446092103,26.75,157.94,157.84,7.6609]
[1727446092300,26.75,157.94,157.84,4.4941]
[1727446092503,26.75,157.89,157.79,2.2429]
[1727446092705,26.75,157.86,157.79,2.2429]
[1727446092898,26.75,157.86,157.77,4.4856]
[1727446093104,29.94762419,157.89,157.77,4.4856]
[1727446093402,26.75,157.86,157.77,4.4856]
[1727446093607,3.1673,157.83,157.77,4.4856]
[1727446093904,29.99381195,157.86,157.77,2.2983]
[1727446094205,3.1672,157.83,157.77,2.2983]
[1727446094402,3.1672,157.83,157.78,3.1681]
[1727446094799,3.24381195,157.86,157.77,2.2983]
[1727446095001,26.75,157.88,157.8,3.1676]
[1727446095398,29.95768509,157.88,157.77,2.2983]
[1727446095599,29.95768509,157.88,157.8,3.1677]
[1727446095804,29.95768509,157.88,157.77,2.2983]
[1727446096004,29.95768509,157.88,157.79,3.1679]
[1727446096306,3.1668,157.85,157.77,2.2983]
[1727446096498,26.75,157.83,157.77,2.2983]
[1727446096706,26.75,157.86,157.77,2.2983]
[1727446096907,29.95768509,157.88,157.77,2.2983]
[1727446097102,75.28,157.89,157.78,26.75]
[1727446097402,3.1664,157.87,157.78,26.75]
[1727446097699,3.11693174,157.89,157.78,26.75]
[1727446098004,26.75,157.91,157.78,26.75]
[1727446098305,3.1663,157.88,157.78,26.75]
[1727446098609,3.13182709,157.91,157.8,26.75]
[1727446098801,3.1658,157.9,157.85,3.1666]
[1727446098998,75.28,157.92,157.83,26.75]
[1727446099199,3.15654704,157.91,157.83,26.75]
[1727446099502,3.15654704,157.91,157.88,3.166]
[1727446099697,75.28,157.92,157.85,26.75]
[1727446099902,75.28,157.92,157.85,29.0952]
[1727446100298,26.75,157.98,157.85,29.0952]
[1727446100598,3.165,157.94,157.85,29.0952]
[1727446101304,3.165,157.94,157.89,3.1658]
[1727446101705,26.75,157.98,157.85,29.0952]
[1727446101898,26.75,157.96,157.85,29.0952]
[1727446102099,3.1654,157.92,157.85,29.0952]
[1727446102401,3.1098892,157.92,157.85,2.3452]
[1727446102604,26.75,157.93,157.85,2.3452]
[1727446102801,26.75,157.93,157.8,26.75]
[1727446102997,26.75,157.91,157.81,2.2566]
[1727446103194,29.86147281,157.91,157.81,2.2566]
[1727446103398,3.1661,157.89,157.81,2.2566]
[1727446103606,29.86147281,157.91,157.81,2.2566]
[1727446103806,3.1661,157.88,157.84,3.1669]
[1727446104006,3.1661,157.88,157.81,2.2566]
[1727446104303,26.75,157.88,157.77,4.593]
[1727446104506,3.1668,157.85,157.8,3.1676]
[1727446104699,26.75,157.88,157.77,6.7798]
[1727446105306,29.86147281,157.91,157.8,26.75]
[1727446105614,26.75,157.91,157.8,26.75]
[1727446105912,3.14215866,157.91,157.82,26.75]
[1727446106112,1.8295,157.94,157.82,26.75]
[1727446106411,3.1656,157.91,157.87,3.1662]
[1727446106612,6.27790346,157.91,157.87,3.1662]
[1727446107613,26.75,157.96,157.87,3.1662]
[1727446107614,29.90082148,158.0,157.87,26.75]
[1727446107800,29.90082148,158.0,157.88,6.9044]
[1727446108407,29.90082148,158.0,157.91,3.1654]
[1727446108609,29.90082148,158.0,157.88,6.9044]
[1727446108901,26.75,157.98,157.89,3.1659]
[1727446109302,26.75,157.98,157.88,4.6402]
[1727446109507,26.75,157.98,157.9,3.1656]
[1727446109900,26.75,157.96,157.88,4.6402]
[1727446110114,26.75,157.98,157.88,4.6402]
[1727446110810,26.75,157.98,157.89,3.1657]
[1727446111405,26.75,157.98,157.88,4.6402]
[1727446111914,26.75,157.98,157.92,3.1652]
[1727446111915,3.1641,157.98,157.92,3.1652]
[1727446112609,3.15082148,158.0,157.89,26.75]
[1727446112810,26.75,158.01,157.89,26.75]
[1727446113009,3.1639,157.99,157.89,26.75]
[1727446113308,29.98164139,158.01,157.89,26.75]
[1727446113513,3.1641,157.99,157.93,3.165]
[1727446114113,3.1641,157.99,157.89,26.75]
[1727446114314,3.1641,157.99,157.9,2.343]
[1727446114712,3.1638,158.0,157.9,2.343]
[1727446114913,3.23164139,158.01,157.92,26.75]
[1727446115115,75.26,158.02,157.95,3.1646]
[1727446115311,26.75,157.99,157.88,4.6402]
[1727446116009,3.1647,157.96,157.91,3.1654]
[1727446117318,26.75,157.99,157.9,3.1657]
[1727446117514,1.8287,157.98,157.9,3.1657]
[1727446117818,26.75,157.97,157.9,3.1657]
[1727446118013,26.75,157.97,157.89,3.1658]
[1727446118318,26.75,157.97,157.88,4.6402]
[1727446118514,3.1646,157.96,157.91,3.1655]
[1727446119522,26.75,157.97,157.88,4.6402]
[1727446119816,26.75,157.94,157.83,6.7441]
[1727446120017,29.93403025,157.94,157.83,6.7441]
[1727446120229,3.1658,157.9,157.85,3.1666]
[1727446120711,29.93403025,157.94,157.83,6.7441]
[1727446120712,3.1656,157.91,157.86,3.1665]
[1727446121417,29.93403025,157.94,157.83,33.4941]
[1727446121418,3.18403025,157.94,157.83,33.4941]
[1727446121721,26.75,157.99,157.85,26.75]
[1727446121922,3.1649,157.94,157.9,3.1657]
[1727446122119,29.98342942,157.99,157.87,26.75]
[1727446123023,26.75,157.94,157.83,6.7441]
[1727446123530,3.1656,157.91,157.87,3.1663]
[1727446123832,26.75,157.94,157.83,6.7441]
[1727446124128,26.75,157.91,157.83,6.7441]
[1727446124329,3.22667334,157.9,157.83,6.7441]
[1727446124717,26.75,157.91,157.83,9.9111]
[1727446124718,3.1663,157.88,157.83,9.9111]
[1727446124921,26.75,157.91,157.83,6.7441]
[1727446125117,29.93328364,157.91,157.83,6.7441]
[1727446125317,3.1661,157.89,157.85,3.1666]
[1727446125524,3.1661,157.89,157.83,6.7441]
[1727446125721,3.18328364,157.91,157.83,6.7441]
[1727446125926,3.1658,157.9,157.86,3.1665]
[1727446126223,3.09076503,157.89,157.86,3.1665]
[1727446127331,6.25676503,157.89,157.85,3.1667]
[1727446127529,3.166,157.89,157.85,3.1667]
[1727446127931,3.166,157.89,157.86,3.1665]
[1727446128123,3.16266538,157.89,157.86,3.1665]
[1727446128324,26.75,157.94,157.83,6.7441]
[1727446128525,3.1658,157.9,157.86,3.1664]
[1727446128826,6.27620301,157.9,157.86,3.1664]
[1727446129432,1.2202,157.95,157.83,6.7441]
[1727446129627,26.75,157.96,157.85,26.75]
[1727446129823,3.1653,157.93,157.88,3.1661]
[1727446130032,26.75,157.96,157.85,26.75]
[1727446130338,3.1652,157.93,157.88,3.166]
[1727446130632,26.75,157.96,157.88,3.166]
[1727446131038,3.1652,157.93,157.89,3.1659]
[1727446131533,26.75,157.98,157.87,26.75]
[1727446131740,3.23342942,157.99,157.87,26.75]
[1727446132037,3.6582,158.0,157.87,26.75]
[1727446132232,4.94440183,158.0,157.87,26.75]
[1727446132735,3.1642,157.98,157.9,26.75]
[1727446133038,102.01,158.01,157.91,4.532]
[1727446133338,3.1643,157.98,157.93,3.165]
[1727446133743,3.1639,157.99,157.91,4.532]
[1727446134036,105.1260673,158.01,157.91,4.532]
[1727446134232,105.1260673,158.01,157.92,3.1652]
[1727446134426,3.1644,157.97,157.92,3.1652]
[1727446135239,3.1646,157.96,157.92,3.1652]
[1727446135828,105.1260673,158.01,157.92,3.1652]
[1727446136229,105.1260673,158.01,157.91,7.6975]
[1727446136230,3.1648,157.95,157.91,7.6975]
[1727446136435,26.75,157.98,157.86,26.75]
[1727446136937,3.1646,157.96,157.86,26.75]
[1727446137338,26.75,158.0,157.88,26.75]
[1727446138436,3.1644,157.97,157.93,3.1651]
[1727446138636,26.75,158.0,157.88,26.75]
[1727446138834,3.1638,158.0,157.96,3.1645]
[1727446139836,3.1160673,158.01,157.95,3.1646]
[1727446139837,3.1639,157.99,157.95,3.1646]
[1727446140346,3.1160673,158.01,157.94,3.1649]
[1727446140644,3.1642,157.98,157.92,6.942]
[1727446141047,3.18371536,157.98,157.92,6.942]
[1727446141342,26.75,158.03,157.92,6.942]
[1727446141541,3.14444542,158.03,157.96,3.1643]
[1727446141736,3.1638,158.0,157.96,3.1643]
[1727446141932,3.11579181,157.99,157.96,3.1643]
[1727446142540,26.75,158.03,157.92,6.942]
[1727446142945,3.1641,157.99,157.94,3.1649]
[1727446143147,26.75,158.03,157.92,6.942]
[1727446143346,3.10819386,158.04,157.96,26.75]
[1727446143644,26.75,158.11,157.98,26.75]
[1727446143945,3.162,158.09,157.99,7.0073]
[1727446144151,26.75,158.11,158.01,26.75]
[1727446144441,18.5261,158.12,158.03,16.7]
[1727446144644,1.8261,158.12,158.03,16.7]
[1727446144832,3.0443,158.13,158.03,16.7]
[1727446145037,19.7443,158.13,158.03,16.7]
[1727446145235,3.1616,158.11,158.05,3.1626]
[1727446145433,16.7,158.09,157.99,7.0073]
[1727446145637,16.7,158.09,157.99,23.7073]
[1727446145841,19.862,158.09,157.99,23.7073]
[1727446146037,16.7,158.09,158.01,16.7]
[1727446146242,19.8618,158.1,158.01,16.7]
[1727446146443,87.84039059,158.11,158.0,26.72]
[1727446147352,87.84039059,158.11,158.04,3.1629]
[1727446148846,3.1619,158.1,158.04,3.1629]
[1727446149950,87.84039059,158.11,157.99,7.0073]
[1727446150543,3.1619,158.09,158.03,3.163]
[1727446150848,87.84039059,158.11,158.03,26.72]
[1727446151048,3.1613,158.12,158.06,3.1624]
[1727446151255,117.12052079,158.14,158.08,26.72]
[1727446151551,26.72,158.15,158.03,26.72]
[1727446151752,26.72,158.15,158.04,2.181]
[1727446152252,1.2161,158.19,158.06,26.72]
[1727446152450,31.0513409,158.19,158.08,26.72]
[1727446152751,26.72,158.19,158.08,26.72]
[1727446152946,26.72,158.19,158.07,2.2467]
[1727446152947,26.72,158.14,158.07,2.2467]
[1727446153151,3.6525,158.22,158.07,2.2467]
[1727446153348,26.72,158.17,158.07,2.2467]
[1727446153542,29.85738416,158.17,158.07,2.2467]
[1727446154143,26.72,158.14,158.07,2.2467]
[1727446154344,3.1609,158.14,158.07,3.1623]
[1727446154544,26.72,158.15,158.01,33.5288]
[1727446154746,26.72,158.15,158.03,26.72]
[1727446154944,3.1615,158.12,158.05,3.1626]
[1727446155149,3.13109918,158.13,158.03,26.72]
[1727446155352,26.72,158.17,158.05,26.72]
[1727446155553,6.34127908,158.16,158.09,3.1617]
[1727446155756,26.72,158.2,158.09,4.6049]
[1727446155956,29.85521281,158.2,158.09,4.6049]
[1727446156249,3.13521281,158.2,158.09,4.6049]
[1727446156455,30.3725,158.22,158.1,29.0265]
[1727446156754,3.16,158.19,158.1,29.0265]
[1727446156949,3.10483529,158.21,158.1,29.0265]
[1727446157250,26.72,158.22,158.1,29.0265]
[1727446157451,1.2159,158.23,158.1,29.0265]
[1727446157452,3.14217432,158.21,158.1,29.0265]
[1727446157756,3.1593,158.23,158.12,26.72]
[1727446157947,73.2,158.24,158.12,26.72]
[1727446158347,99.92,158.24,158.12,26.72]
[1727446158551,99.92,158.24,158.1,2.3065]
[1727446158552,73.2,158.24,158.14,26.72]
[1727446159455,6.75573861,158.31,158.17,26.72]
[1727446159663,33.47573861,158.31,158.18,6.8223]
[1727446160157,26.72,158.28,158.18,6.8223]
[1727446160554,3.1587,158.25,158.18,9.9823]
[1727446160955,26.72,158.28,158.18,6.8223]
[1727446161148,26.72,158.28,158.19,3.1598]
[1727446161358,26.72,158.28,158.18,6.8223]
[1727446161753,33.47573861,158.31,158.18,6.8223]
[1727446161949,33.47573861,158.31,158.2,3.1597]
[1727446162159,33.47573861,158.31,158.18,6.8223]
[1727446162856,3.1584,158.27,158.21,3.1595]
[1727446163060,33.47573861,158.31,158.21,3.1595]
[1727446163457,3.1581,158.28,158.22,3.1593]
[1727446163650,33.47573861,158.31,158.2,26.72]
[1727446164061,3.1581,158.29,158.23,3.1591]
[1727446164250,33.47573861,158.31,158.2,26.72]
[1727446164560,75.16,158.32,158.25,3.1586]
[1727446164964,3.22161289,158.31,158.22,26.72]
[1727446165659,6.37931289,158.31,158.25,3.1587]
[1727446165859,3.1577,158.31,158.25,3.1587]
[1727446166060,78.3174,158.32,158.22,26.72]
[1727446166358,75.16,158.32,158.22,26.72]
[1727446166765,3.1576,158.31,158.25,3.1585]
[1727446167464,4.8627,158.42,158.27,26.72]
[1727446167763,3.0385,158.42,158.3,26.72]
[1727446167955,3.1561,158.39,158.32,3.1573]
[1727446168153,3.19534133,158.38,158.31,4.5134]
[1727446168357,26.72,158.38,158.28,2.329]
[1727446168556,3.22851425,158.37,158.28,2.329]
[1727446168966,26.72,158.39,158.28,2.329]
[1727446169159,29.89006673,158.39,158.28,2.329]
[1727446169469,29.89006673,158.39,158.3,3.1577]
[1727446169470,3.1567,158.36,158.3,3.1577]
[1727446170160,3.17006673,158.39,158.28,29.049]
[1727446170358,26.72,158.39,158.28,29.049]
[1727446171159,3.12571779,158.39,158.28,29.049]
[1727446171355,26.72,158.43,158.3,26.72]
[1727446171757,3.1563,158.38,158.32,3.1572]
[1727446172057,26.72,158.43,158.3,26.72]
[1727446172257,3.0444,158.45,158.3,26.72]
[1727446172459,26.72,158.43,158.3,26.72]
[1727446172655,26.72,158.4,158.28,29.049]
[1727446173366,3.1567,158.36,158.28,29.049]
[1727446173563,3.20217829,158.37,158.28,29.049]
[1727446173763,26.72,158.4,158.28,29.049]
[1727446174465,26.72,158.38,158.28,2.329]
[1727446174666,3.1572,158.33,158.28,2.329]
[1727446174868,26.72,158.35,158.28,2.329]
[1727446175359,29.93282504,158.35,158.28,2.329]
[1727446175869,26.72,158.33,158.24,6.7363]
[1727446176061,3.16228409,158.32,158.24,6.7363]
[1727446176763,3.1566,158.36,158.3,3.1577]
[1727446177067,26.72,158.38,158.3,3.1577]
[1727446177266,3.1566,158.36,158.3,3.1577]
[1727446177562,3.177534,158.36,158.31,3.1574]
[1727446177866,26.72,158.38,158.26,26.72]
[1727446178365,3.21323663,158.39,158.28,26.72]
[1727446178561,26.72,158.4,158.28,26.72]
[1727446178757,26.72,158.4,158.32,3.1572]
[1727446178958,3.11687112,158.39,158.28,26.72]
[1727446179360,3.11687112,158.39,158.33,3.1569]
[1727446179361,6.27287112,158.39,158.33,3.1569]
[1727446180063,6.27287112,158.39,158.28,26.72]
[1727446180064,3.1561,158.38,158.32,3.1573]
[1727446180269,26.72,158.38,158.25,26.72]
[1727446180463,3.08053659,158.37,158.25,26.72]
[1727446180661,26.72,158.42,158.31,26.72]
[1727446180866,26.72,158.42,158.32,2.1946]
[1727446181065,26.72,158.42,158.32,4.5594]
[1727446181369,101.8,158.44,158.32,4.5594]
[1727446181668,101.8,158.44,158.35,26.72]
[1727446181669,75.08,158.44,158.35,26.72]
[1727446181873,75.08,158.44,158.33,26.72]
[1727446182371,3.1555,158.42,158.36,3.1565]
[1727446182568,26.72,158.42,158.32,6.7689]
[1727446183158,26.72,158.39,158.32,2.3648]
[1727446183360,29.91861444,158.39,158.28,26.72]
[1727446183566,3.1563,158.38,158.32,3.1573]
[1727446183968,3.1564,158.37,158.31,3.1575]
[1727446184270,29.91861444,158.39,158.28,26.72]
[1727446184567,3.1566,158.36,158.3,3.1576]
[1727446185265,29.91861444,158.39,158.29,3.1579]
[1727446185571,26.72,158.38,158.29,3.1579]
[1727446185764,3.1569,158.34,158.26,26.72]
[1727446185965,3.12931144,158.34,158.26,26.72]
[1727446186267,1.8251,158.38,158.26,26.72]
[1727446186567,3.1568,158.35,158.28,3.1581]
[1727446186761,4.93292803,158.38,158.28,26.72]
[1727446186961,1.8251,158.38,158.28,26.72]
[1727446187166,3.1564,158.37,158.3,3.1576]
[1727446187365,6.27346813,158.37,158.3,3.1576]
[1727446188068,3.1566,158.36,158.29,3.1579]
[1727446188273,3.11706813,158.37,158.28,26.72]
[1727446188570,26.72,158.39,158.28,26.72]
[1727446188774,29.90057859,158.39,158.28,26.72]
[1727446189476,3.1567,158.36,158.29,3.1579]
[1727446189665,29.90057859,158.39,158.29,3.1579]
[1727446190377,16.69,158.37,158.3,3.1577]
[1727446190677,3.1567,158.36,158.28,16.69]
[1727446190877,3.22164872,158.36,158.28,16.69]
[1727446191469,3.22164872,158.36,158.29,3.1578]
[1727446191875,3.22164872,158.36,158.28,16.69]
[1727446192075,3.22164872,158.36,158.3,3.1577]
[1727446192276,6.37834872,158.36,158.3,3.1577]
[1727446193273,3.1567,158.35,158.3,3.1577]
[1727446194175,16.69,158.31,158.24,4.6807]
[1727446194376,3.22164872,158.36,158.24,4.6807]
[1727446194377,4.8711,158.35,158.24,4.6807]
[1727446194577,16.69,158.32,158.24,7.8394]
[1727446194770,16.69,158.32,158.24,4.6807]
[1727446195577,7.95309519,158.35,158.22,16.69]
[1727446195578,16.69,158.3,158.22,16.69]
[1727446196274,16.69,158.32,158.22,16.69]